fUSD/lending_fUSD_20240624
["ID","MTS","AMOUNT","RATE_DAILY","PERIOD"]
[330288185,1719232266869,-500.0,0.00020108,2]
[330288186,1719232266879,-200.0,0.00020108,2]
[330288187,1719232266889,-200.0,0.00020108,2]
[330288188,1719232266899,-151.0,0.00020108,2]
[330288189,1719232266908,-151.0,0.00020108,2]
[330288190,1719232266918,-200.92410274,0.00020167,2]
[330288191,1719232266927,-283.54219834,0.00020167,2]
[330288192,1719232266938,-151.0,0.00020171,2]
[330288193,1719232266947,-229.71819632,0.00020173,2]
[330288194,1719232266956,-11931.50366076,0.00020173,2]
[330288195,1719232266967,-19057.68449858,0.00020173,2]
[330288196,1719232266976,-12749.19467156,0.00020195,2]
[330288197,1719232266986,-490.0,0.000202,2]
[330288198,1719232266995,-374.88148,0.000202,2]
[330288199,1719232267005,-374.881484,0.000202,2]
[330288200,1719232267015,-11688.00574451,0.00020227,2]
[330288201,1719232267024,-3056.41106372,0.00020227,2]
[330288202,1719232267035,-255.507542,0.00020227,2]
[330288203,1719232267047,-255.50755,0.00020227,2]
[330288204,1719232267057,-155.0,0.00020232,2]
[330288205,1719232267067,-491.61691634,0.00020232,2]
[330288206,1719232267076,-235.475307,0.0002026,2]
[330288207,1719232267086,-235.475315,0.0002026,2]
[330288208,1719232267096,-283.22486,0.0002026,2]
[330288209,1719232267106,-3719.6155346,0.00020265,2]
[330288210,1719232267116,-13629.3493222,0.00020265,2]
[330288211,1719232267127,-13093.58395626,0.00020265,2]
[330288213,1719232268506,-14110.59351118,0.00020265,2]
[330288214,1719232268517,-748.10152514,0.00020265,2]
[330288215,1719232268534,-347.415,0.00020265,2]
[330288216,1719232269258,-24688.9497573,0.000168,2]
[330288217,1719232269268,-196.20443442,0.00018924,2]
[330288218,1719232269278,-1285.71256166,0.00019049,2]
[330288219,1719232269291,-1661.0,0.00019051,2]
[330288220,1719232269301,-151.0,0.00019178,2]
[330288221,1719232269310,-151.0,0.00019178,2]
[330288222,1719232269320,-500.0,0.00019178,2]
[330288223,1719232269329,-231.673429,0.00019178,2]
[330288224,1719232269340,-231.673429,0.00019178,2]
[330288225,1719232269349,-151.0,0.00019339,2]
[330288226,1719232269358,-151.0,0.00019452,2]
[330288227,1719232269370,-151.0,0.00019452,2]
[330288228,1719232269380,-500.0,0.00019452,4]
[330288229,1719232269389,-1194.0,0.00019726,2]
[330288230,1719232269399,-151.0,0.00019726,2]
[330288231,1719232269408,-151.0,0.00019726,2]
[330288232,1719232269419,-500.0,0.00019726,4]
[330288233,1719232269470,-151.0,0.0002,2]
[330288234,1719232269480,-151.0,0.0002,2]
[330288235,1719232269490,-500.0,0.0002,4]
[330288236,1719232269499,-151.0,0.00020088,2]
[330288237,1719232269508,-445.9689,0.00020169,2]
[330288238,1719232269517,-3008.51741607,0.00020265,2]
[330288297,1719232581600,250.0,0.00025,30]
[330288299,1719232590661,-10000.0,0.00014,2]
[330288300,1719232591089,-10000.0,0.00014,2]
[330288301,1719232591568,-10000.0,0.00014,2]
[330288302,1719232591984,-10000.0,0.00014,2]
[330288303,1719232592397,-10000.0,0.00014,2]
[330288304,1719232592838,-10000.0,0.00014,2]
[330288305,1719232593288,-10000.0,0.00014,2]
[330288306,1719232593731,-10000.0,0.00014,2]
[330288307,1719232594153,-10000.0,0.00014,2]
[330288308,1719232594585,-10000.0,0.00014,2]
[330288309,1719232595020,-10000.0,0.00014,2]
[330288311,1719232595480,-10000.0,0.00014,2]
[330288313,1719232595899,-10000.0,0.00014,2]
[330288314,1719232596300,-10000.0,0.00014,2]
[330288315,1719232596656,-10000.0,0.00014,2]
[330288316,1719232597027,-10000.0,0.00014,2]
[330288317,1719232597537,-10000.0,0.00014,2]
[330288318,1719232598471,-10000.0,0.00014,2]
[330288319,1719232598885,-10000.0,0.00014,2]
[330288320,1719232599720,-10000.0,0.00014,2]
[330288326,1719232631516,-10000.0,0.00014,2]
[330288328,1719232639807,-6668.4304,0.000139,2]
[330288333,1719232670425,500.0,0.00025,30]
[330288346,1719232772097,916.92331917,0.000138,2]
[330288360,1719232868820,3506.40172338,0.000138,2]
[330288379,1719232994706,1307.08047064,0.000138,2]
[330288388,1719233053354,1000.0,0.00013,2]
[330288389,1719233059189,1000.0,0.000135,2]
[330288397,1719233116139,8274.10513084,0.000138,2]
[330288403,1719233153234,318.15881835,0.000138,2]
[330288404,1719233153478,825.23098728,0.000138,2]
[330288419,1719233274856,1143.69541181,0.000138,2]
[330288420,1719233289091,318.15881835,0.000138,2]
[330288422,1719233319215,3155.76155106,0.000138,2]
[330288425,1719233396610,188.14842965,0.000138,2]
[330288426,1719233409534,150.0,0.00013999,7]
[330288428,1719233411527,150.0,0.00013999,7]
[330288429,1719233414117,318.15881835,0.000138,2]
[330288442,1719233433445,-901.09113588,0.000139,2]
[330288443,1719233433457,-438.97877864,0.000139,2]
[330288444,1719233433468,-17424.07274544,0.000139,2]
[330288445,1719233433480,-2686.00226037,0.000139,2]
[330288446,1719233433491,-684.71908266,0.000139,2]
[330288447,1719233433714,-0.10000401,0.000139,2]
[330288448,1719233433726,-669.94125223,0.000139,2]
[330288449,1719233433737,-8311.72992793,0.000139,2]
[330288452,1719233433748,-502.90722895,0.000139,2]
[330288454,1719233433759,-678.06635445,0.000139,2]
[330288457,1719233433779,-865.46028817,0.000139,2]
[330288459,1719233433790,-541.0092199,0.000139,2]
[330288461,1719233433801,-657.25,0.000139,2]
[330288463,1719233433812,-22026.19293924,0.000139,2]
[330288467,1719233433900,-34018.31119521,0.000139,2]
[330288469,1719233433911,-68928.86870524,0.000139,2]
[330288473,1719233433941,-567.14,0.000139,2]
[330288477,1719233438799,-33571.63090001,0.000139,2]
[330288478,1719233438852,-1520.39891193,0.000139,2]
[330288482,1719233440332,-2538.91574306,0.000139,2]
[330288483,1719233440344,-2143.22506386,0.000139,2]
[330288522,1719233443799,-35392.19508648,0.000139,2]
[330288524,1719233444987,-457.46955249,0.000139,2]
[330288525,1719233444998,-1381.05676272,0.000139,2]
[330288526,1719233445010,-7062.5,0.000139,2]
[330288527,1719233445020,-33750.96749041,0.000139,2]
[330288528,1719233445049,-682.52581,0.000139,2]
[330288529,1719233445060,-493.78297414,0.000139,2]
[330288530,1719233445071,-32301.91338658,0.000139,2]
[330288531,1719233445080,-191402.16511066,0.000139,2]
[330288535,1719233446468,-11585.50129329,0.000139,2]
[330288536,1719233447829,-959.66047797,0.000139,2]
[330288539,1719233447957,-14181.9084296,0.000139,2]
[330288564,1719233529432,318.15881835,0.000138,2]
[330288567,1719233534624,746.18110798,0.000138,2]
[330288571,1719233553605,2971.20943959,0.000138,2]
[330288581,1719233752907,-8783.6243501,0.000139,2]
[330288588,1719234260945,5000.0,0.00025,30]
[330288589,1719234282441,20000.0,0.00025,30]
[330288601,1719234609844,150.0,0.00013999,7]
[330288614,1719234632556,-182.31541477,0.000138,2]
[330288615,1719234632568,-318.15881835,0.000138,2]
[330288616,1719234632579,-3501.30944629,0.0001389,2]
[330288620,1719234633822,-921.78525787,0.0001389,2]
[330288621,1719234633836,-306.8124,0.0001389,2]
[330288622,1719234638936,-303.29325585,0.0001389,2]
[330288623,1719234638960,-204.16471806,0.0001389,2]
[330288624,1719234638969,-615.92528194,0.000139,2]
[330288625,1719234639082,-10274.0346688,0.000139,2]
[330288626,1719234639094,-532.07786788,0.000139,2]
[330288627,1719234639107,-847.28827179,0.000139,2]
[330288628,1719234639273,-483.66,0.000139,2]
[330288631,1719234640700,-739.99109435,0.000139,2]
[330288632,1719234640711,-289861.5584722,0.000139,2]
[330288633,1719234640722,-17902.17997761,0.000139,2]
[330288637,1719234640846,-359.48000001,0.000139,2]
[330288638,1719234640858,-588.25655239,0.000139,2]
[330288639,1719234640986,-305916.44682096,0.000139,2]
[330288640,1719234640996,-829.38072415,0.000139,2]
[330288641,1719234641006,-162.86944677,0.000139,2]
[330288642,1719234641016,-15522.40050416,0.000139,2]
[330288643,1719234641026,-174.49944535,0.000139,2]
[330288644,1719234641035,-2381.52263814,0.000139,2]
[330288645,1719234641044,-2782.29795,0.000139,2]
[330288646,1719234641054,-10286.92346301,0.000139,2]
[330288647,1719234641065,-1499.09671421,0.000139,2]
[330288648,1719234641074,-2828.45274486,0.00013933,2]
[330288649,1719234641083,-150.0,0.00013999,2]
[330288650,1719234641094,-4166446.50915485,0.00014,2]
[330288651,1719234641105,-1000.0,0.00014,2]
[330288652,1719234641116,-412.61839352,0.0001411,2]
[330288653,1719234641126,-645.06,0.00014275,2]
[330288654,1719234641136,-15522.40050415,0.00014717,2]
[330288655,1719234641145,-3032.4,0.00014717,2]
[330288656,1719234641155,-276.2772852,0.00014899,2]
[330288657,1719234641164,-210.62447812,0.000149,2]
[330288658,1719234641173,-210.6244781,0.000149,2]
[330288659,1719234641183,-210.6244781,0.000149,2]
[330288660,1719234641192,-499.99,0.000149,2]
[330288661,1719234641202,-775.8,0.00014968,2]
[330288662,1719234641211,-1000.0,0.00015,3]
[330288663,1719234641221,-15522.40050415,0.00015535,2]
[330288664,1719234641230,-176.88,0.0001591,2]
[330288665,1719234641240,-166.58,0.0001591,2]
[330288666,1719234641250,-250.0,0.00015976,2]
[330288667,1719234641259,-250.0,0.00015991,2]
[330288668,1719234641269,-1000.0,0.00016,2]
[330288669,1719234641278,-7406.55,0.0001601,2]
[330288670,1719234641288,-168.28,0.00016018,2]
[330288671,1719234641297,-1000.0,0.00016026,2]
[330288672,1719234641307,-438.00098198,0.00016049,2]
[330288673,1719234641316,-2156.35,0.0001605,2]
[330288674,1719234641326,-470.32,0.0001605,2]
[330288675,1719234641335,-155.36,0.00016061,2]
[330288676,1719234641345,-589.74225262,0.00016147,2]
[330288677,1719234641355,-179.66745211,0.00016351,2]
[330288678,1719234641367,-155.29796002,0.00016351,2]
[330288679,1719234641377,-521.82025808,0.00016351,2]
[330288680,1719234641387,-158.82106074,0.00016351,2]
[330288681,1719234641397,-15522.40050415,0.00016352,2]
[330288682,1719234641406,-168.08,0.00016418,2]
[330288683,1719234641415,-887.93932126,0.00016436,2]
[330288684,1719234641425,-645.06,0.00016538,2]
[330288685,1719234641435,-163.61123882,0.0001661,2]
[330288686,1719234641445,-169.75,0.00016695,2]
[330288687,1719234641454,-1000.0,0.00017,5]
[330288688,1719234641464,-15522.40050415,0.00017169,2]
[330288689,1719234641474,-652.0,0.000175,2]
[330288690,1719234641483,-3761.0,0.000175,2]
[330288691,1719234641492,-176.88,0.000175,2]
[330288692,1719234641502,-354.35,0.0001794,2]
[330288693,1719234641511,-354.35,0.0001794,2]
[330288694,1719234641525,-852.1,0.0001794,2]
[330288695,1719234641534,-188.59,0.0001794,2]
[330288696,1719234641543,-354.35,0.0001794,2]
[330288697,1719234641552,-15522.40050415,0.00017986,2]
[330288698,1719234641563,-2000.0,0.00018,5]
[330288699,1719234641574,-253.90432169,0.00018029,2]
[330288700,1719234641593,-501.27197359,0.00018029,2]
[330288701,1719234641604,-1000.0,0.0001803,2]
[330288702,1719234641615,-1303.0,0.00018139,2]
[330288703,1719234641625,-518.04242089,0.00018197,2]
[330288704,1719234641635,-318.15881835,0.00018345,2]
[330288705,1719234641644,-155.0,0.00018394,2]
[330288706,1719234641654,-2381.52263814,0.00018395,2]
[330288707,1719234641663,-10286.92346301,0.00018395,2]
[330288708,1719234641673,-1400.55359634,0.00018613,7]
[330288709,1719234641683,-1000.0,0.00018679,2]
[330288710,1719234641693,-1012.62731708,0.00018775,2]
[330288711,1719234641703,-471.77,0.00018776,2]
[330288712,1719234641712,-375.58,0.00018776,2]
[330288713,1719234641722,-304.38,0.00018776,2]
[330288714,1719234641732,-302.63,0.00018776,2]
[330288715,1719234641742,-150.31,0.00018776,2]
[330288716,1719234641753,-423.74,0.00018776,2]
[330288717,1719234641763,-352.08,0.00018776,2]
[330288718,1719234641773,-423.74,0.00018776,2]
[330288719,1719234641782,-150.0,0.00018776,2]
[330288720,1719234641792,-164.63,0.00018776,2]
[330288721,1719234641801,-354.35,0.00018776,2]
[330288722,1719234641811,-150.0,0.00018776,2]
[330288723,1719234641820,-354.35,0.00018776,2]
[330288724,1719234641829,-164.63,0.00018776,2]
[330288725,1719234641838,-150.0,0.00018776,2]
[330288726,1719234641847,-423.74,0.00018776,2]
[330288727,1719234641858,-164.63,0.00018776,2]
[330288728,1719234641870,-354.35,0.00018776,2]
[330288729,1719234641880,-423.74,0.00018776,2]
[330288730,1719234641890,-164.63,0.00018776,2]
[330288731,1719234641900,-354.35,0.00018776,2]
[330288732,1719234641909,-150.0,0.00018776,2]
[330288733,1719234641919,-423.74,0.00018776,2]
[330288734,1719234641929,-164.63,0.00018776,2]
[330288735,1719234641939,-352.34,0.00018776,2]
[330288736,1719234641952,-150.0,0.00018776,2]
[330288737,1719234641970,-329.06,0.00018776,2]
[330288738,1719234641980,-423.74,0.00018776,2]
[330288739,1719234641990,-150.0,0.00018777,7]
[330288740,1719234642001,-1830.0,0.00018779,2]
[330288741,1719234642010,-359.0,0.00018779,2]
[330288742,1719234642020,-1655.0,0.00018779,2]
[330288743,1719234642030,-1272.0,0.00018779,2]
[330288744,1719234642039,-448.0,0.00018779,2]
[330288745,1719234642048,-443.0,0.00018779,2]
[330288746,1719234642058,-617.0,0.00018779,2]
[330288747,1719234642068,-812.0,0.00018779,2]
[330288748,1719234642077,-2412.0,0.00018779,2]
[330288749,1719234642087,-1304.0,0.00018779,2]
[330288750,1719234642096,-150.0,0.00018779,2]
[330288751,1719234642106,-547.0,0.00018779,2]
[330288752,1719234642118,-1984.0,0.00018779,2]
[330288753,1719234642128,-3201.0,0.00018779,2]
[330288754,1719234642137,-1068.0,0.00018779,2]
[330288755,1719234642147,-291.0,0.00018779,2]
[330288756,1719234642157,-5168.0,0.00018779,2]
[330288757,1719234642167,-5800.0,0.00018779,2]
[330288758,1719234642176,-38166.0,0.00018779,2]
[330288759,1719234642186,-1661.0,0.00018779,2]
[330288760,1719234642195,-1197.0,0.00018779,2]
[330288761,1719234642204,-2156.35,0.0001879,2]
[330288762,1719234642214,-645.06,0.00018802,2]
[330288763,1719234642224,-15522.40050415,0.00018804,2]
[330288764,1719234642233,-10000.0,0.0001887,2]
[330288765,1719234642244,-3106.94505996,0.00018899,2]
[330288766,1719234642253,-5000.0,0.00018899,2]
[330288767,1719234642263,-2782.29795,0.000189,2]
[330288768,1719234642273,-354.89,0.000189,2]
[330288769,1719234642283,-354.89,0.000189,2]
[330288770,1719234642292,-354.89,0.000189,2]
[330288771,1719234642301,-354.89,0.000189,2]
[330288772,1719234642311,-354.89,0.000189,2]
[330288773,1719234642320,-354.89,0.000189,2]
[330288774,1719234642329,-354.89,0.000189,2]
[330288775,1719234642339,-354.89,0.000189,2]
[330288776,1719234642348,-354.89,0.000189,2]
[330288777,1719234642358,-354.89,0.000189,2]
[330288778,1719234642370,-354.89,0.000189,2]
[330288779,1719234642379,-354.89,0.000189,2]
[330288780,1719234642389,-354.89,0.000189,2]
[330288781,1719234642398,-354.89,0.000189,2]
[330288782,1719234642407,-354.89,0.000189,2]
[330288783,1719234642417,-354.89,0.000189,2]
[330288784,1719234642426,-354.89,0.000189,2]
[330288785,1719234642436,-354.89,0.000189,2]
[330288786,1719234642446,-354.89,0.000189,2]
[330288787,1719234642456,-354.89,0.000189,2]
[330288788,1719234642465,-354.89,0.000189,2]
[330288789,1719234642475,-354.89,0.000189,2]
[330288790,1719234642484,-354.89,0.000189,2]
[330288791,1719234642494,-354.89,0.000189,2]
[330288792,1719234642504,-354.89,0.000189,2]
[330288793,1719234642513,-354.89,0.000189,2]
[330288794,1719234642524,-354.89,0.000189,2]
[330288795,1719234642535,-354.89,0.000189,2]
[330288796,1719234642544,-354.89,0.000189,2]
[330288797,1719234642553,-354.89,0.000189,2]
[330288798,1719234642564,-354.89,0.000189,2]
[330288799,1719234642573,-354.89,0.000189,2]
[330288800,1719234642583,-354.89,0.000189,2]
[330288801,1719234642593,-354.89,0.000189,2]
[330288802,1719234642604,-354.89,0.000189,2]
[330288803,1719234642613,-354.89,0.000189,2]
[330288804,1719234642626,-354.89,0.000189,2]
[330288805,1719234642637,-354.89,0.000189,2]
[330288806,1719234642647,-354.89,0.000189,2]
[330288807,1719234642656,-354.89,0.000189,2]
[330288808,1719234642665,-354.89,0.000189,2]
[330288809,1719234642675,-354.89,0.000189,2]
[330288810,1719234642684,-354.89,0.000189,2]
[330288811,1719234642694,-354.89,0.000189,2]
[330288812,1719234642703,-354.89,0.000189,2]
[330288813,1719234642713,-354.89,0.000189,2]
[330288814,1719234642722,-354.89,0.000189,2]
[330288815,1719234642732,-354.89,0.000189,2]
[330288816,1719234642741,-354.89,0.000189,2]
[330288817,1719234642753,-354.89,0.000189,2]
[330288818,1719234642763,-354.89,0.000189,2]
[330288819,1719234642773,-354.89,0.000189,2]
[330288820,1719234642782,-354.89,0.000189,2]
[330288821,1719234642792,-354.89,0.000189,2]
[330288822,1719234642802,-354.89,0.000189,2]
[330288823,1719234642812,-354.89,0.000189,2]
[330288824,1719234642822,-354.89,0.000189,2]
[330288825,1719234642832,-354.89,0.000189,2]
[330288826,1719234642842,-354.89,0.000189,2]
[330288827,1719234642851,-354.89,0.000189,2]
[330288828,1719234642861,-155.0,0.00018924,2]
[330288829,1719234642873,-336.2150137,0.00018924,2]
[330288830,1719234642882,-523.35652933,0.00018924,2]
[330288831,1719234642891,-241.26650875,0.00018969,2]
[330288832,1719234642900,-26842.13616317,0.0001897,2]
[330288833,1719234642909,-491.61691634,0.00018999,2]
[330288834,1719234642919,-3964.57243593,0.00018999,2]
[330288835,1719234642929,-5994.27970714,0.00019,2]
[330288836,1719234642938,-1368.840284,0.00019,7]
[330288837,1719234642948,-4454.52980697,0.0001905,2]
[330288838,1719234642957,-176.88,0.00019091,2]
[330288839,1719234642967,-317.92302052,0.00019151,2]
[330288840,1719234642976,-354.89,0.00019168,2]
[330288841,1719234642986,-354.89,0.00019168,2]
[330288842,1719234642996,-354.89,0.00019168,2]
[330288843,1719234643006,-500.0,0.00019178,2]
[330288844,1719234643017,-500.0,0.00019178,2]
[330288845,1719234643027,-675.73,0.00019178,2]
[330288846,1719234643037,-500.0,0.00019178,2]
[330288847,1719234643046,-500.0,0.00019178,2]
[330288848,1719234643055,-500.0,0.00019178,2]
[330288849,1719234643064,-500.0,0.00019178,2]
[330288850,1719234643074,-890.58,0.00019178,2]
[330288851,1719234643084,-615.75,0.00019178,2]
[330288852,1719234643093,-500.0,0.00019178,2]
[330288853,1719234643104,-500.0,0.00019178,2]
[330288854,1719234643113,-500.0,0.00019178,2]
[330288855,1719234643125,-500.0,0.00019178,2]
[330288856,1719234643135,-500.0,0.00019178,2]
[330288857,1719234643145,-605.34,0.00019178,2]
[330288858,1719234643155,-500.0,0.00019178,2]
[330288859,1719234643165,-870.76,0.00019178,2]
[330288860,1719234643175,-500.0,0.00019178,2]
[330288861,1719234643185,-500.0,0.00019178,2]
[330288862,1719234643195,-500.0,0.00019178,2]
[330288863,1719234643206,-500.0,0.00019178,2]
[330288864,1719234643215,-466.53008832,0.00019178,2]
[330288865,1719234643225,-500.0,0.00019178,2]
[330288866,1719234643234,-500.0,0.00019178,2]
[330288868,1719234643244,-601.49,0.00019178,2]
[330288870,1719234643253,-500.0,0.00019178,2]
[330288872,1719234643263,-812.19,0.00019178,2]
[330288873,1719234643273,-500.0,0.00019178,2]
[330288874,1719234643282,-925.86,0.00019178,2]
[330288875,1719234643292,-611.19,0.00019178,2]
[330288878,1719234643475,-500.0,0.00019178,2]
[330288880,1719234643486,-796.24,0.00019178,2]
[330288882,1719234643496,-505.05666915,0.00019178,2]
[330288884,1719234643506,-500.0,0.00019178,2]
[330288886,1719234643519,-500.0,0.00019178,2]
[330288888,1719234643534,-738.65,0.00019178,2]
[330288889,1719234643544,-765.19,0.00019178,2]
[330288891,1719234643554,-500.0,0.00019178,2]
[330288892,1719234643563,-500.0,0.00019178,2]
[330288894,1719234643572,-500.0,0.00019178,2]
[330288896,1719234643582,-500.0,0.00019178,2]
[330288898,1719234643591,-500.0,0.00019178,2]
[330288900,1719234643601,-500.0,0.00019178,2]
[330288902,1719234643612,-500.0,0.00019178,2]
[330288903,1719234643626,-500.0,0.00019178,2]
[330288905,1719234643635,-500.0,0.00019178,2]
[330288909,1719234643645,-151.0,0.00019178,2]
[330288911,1719234643654,-500.0,0.00019178,2]
[330288914,1719234643664,-500.0,0.00019178,2]
[330288917,1719234643673,-500.0,0.00019178,2]
[330288919,1719234643683,-399.87602508,0.00019178,2]
[330288920,1719234643692,-500.0,0.00019178,2]
[330288922,1719234643702,-500.0,0.00019178,2]
[330288924,1719234643711,-500.0,0.00019178,2]
[330288926,1719234643720,-833.9,0.00019178,2]
[330288928,1719234643730,-500.0,0.00019178,2]
[330288930,1719234643739,-500.0,0.00019178,2]
[330288931,1719234643749,-500.0,0.00019178,2]
[330288932,1719234643759,-500.0,0.00019178,2]
[330288933,1719234643769,-500.0,0.00019178,2]
[330288934,1719234643778,-395.0,0.00019178,2]
[330288935,1719234643788,-500.0,0.00019178,2]
[330288936,1719234643797,-500.0,0.00019178,2]
[330288937,1719234643807,-500.0,0.00019178,2]
[330288938,1719234643817,-500.0,0.00019178,2]
[330288939,1719234643827,-500.0,0.00019178,2]
[330288940,1719234643836,-500.0,0.00019178,2]
[330288941,1719234643845,-510.71,0.00019178,2]
[330288942,1719234643855,-151.0,0.00019178,2]
[330288943,1719234643864,-571.75,0.00019178,2]
[330288944,1719234643875,-896.69,0.00019178,2]
[330288945,1719234643885,-500.0,0.00019178,2]
[330288946,1719234643894,-500.0,0.00019178,2]
[330288947,1719234643904,-500.0,0.00019178,2]
[330288948,1719234643914,-500.0,0.00019178,2]
[330288949,1719234643924,-500.0,0.00019178,2]
[330288950,1719234643933,-500.0,0.00019178,2]
[330288951,1719234643943,-1002.68,0.00019178,2]
[330288952,1719234643953,-500.0,0.00019178,2]
[330288953,1719234643962,-500.0,0.00019178,2]
[330288954,1719234643972,-1386.44,0.00019178,2]
[330288955,1719234643982,-500.0,0.00019178,2]
[330288956,1719234643991,-500.0,0.00019178,2]
[330288957,1719234644000,-500.0,0.00019178,2]
[330288958,1719234644011,-500.0,0.00019178,2]
[330288959,1719234644020,-500.0,0.00019178,2]
[330288960,1719234644031,-500.0,0.00019178,2]
[330288961,1719234644041,-500.0,0.00019178,2]
[330288962,1719234644050,-500.0,0.00019178,2]
[330288963,1719234644059,-500.0,0.00019178,2]
[330288964,1719234644070,-500.0,0.00019178,2]
[330288965,1719234644079,-500.0,0.00019178,2]
[330288966,1719234644089,-500.0,0.00019178,2]
[330288967,1719234644099,-500.0,0.00019178,2]
[330288968,1719234644108,-500.0,0.00019178,2]
[330288969,1719234644120,-500.0,0.00019178,2]
[330288970,1719234644129,-500.0,0.00019178,2]
[330288971,1719234644139,-500.0,0.00019178,2]
[330288972,1719234644149,-500.0,0.00019178,2]
[330288973,1719234644159,-500.0,0.00019178,2]
[330288974,1719234644169,-497.99400096,0.00019178,2]
[330288975,1719234644178,-510.58,0.00019178,2]
[330288976,1719234644187,-500.0,0.00019178,2]
[330288977,1719234644197,-500.0,0.00019178,2]
[330288978,1719234644207,-500.0,0.00019178,2]
[330288979,1719234644216,-500.0,0.00019178,2]
[330288980,1719234644226,-500.0,0.00019178,2]
[330288981,1719234644235,-500.0,0.00019178,2]
[330288982,1719234644244,-500.0,0.00019178,2]
[330288983,1719234644254,-500.0,0.00019178,2]
[330288984,1719234644263,-255.57,0.00019178,2]
[330288985,1719234644272,-389.16,0.00019178,2]
[330288986,1719234644282,-500.0,0.00019178,2]
[330288987,1719234644291,-500.0,0.00019178,2]
[330288988,1719234644300,-500.0,0.00019178,2]
[330288989,1719234644309,-500.0,0.00019178,2]
[330288990,1719234644318,-500.0,0.00019178,2]
[330288991,1719234644328,-500.0,0.00019178,2]
[330288992,1719234644337,-500.0,0.00019178,2]
[330288993,1719234644347,-500.0,0.00019178,2]
[330288994,1719234644356,-500.0,0.00019178,2]
[330288995,1719234644365,-610.4,0.00019178,2]
[330288996,1719234644376,-500.0,0.00019178,2]
[330288997,1719234644385,-500.0,0.00019178,2]
[330288998,1719234644395,-500.0,0.00019178,2]
[330288999,1719234644404,-500.0,0.00019178,2]
[330289000,1719234644414,-500.0,0.00019178,2]
[330289001,1719234644424,-578.19,0.00019178,2]
[330289002,1719234644434,-500.0,0.00019178,2]
[330289003,1719234644444,-500.0,0.00019178,2]
[330289004,1719234644453,-500.0,0.00019178,2]
[330289005,1719234644464,-500.0,0.00019178,2]
[330289006,1719234644473,-500.0,0.00019178,2]
[330289007,1719234644482,-500.0,0.00019178,2]
[330289008,1719234644491,-500.0,0.00019178,2]
[330289009,1719234644501,-500.0,0.00019178,2]
[330289010,1719234644510,-500.0,0.00019178,2]
[330289011,1719234644521,-500.0,0.00019178,2]
[330289012,1719234644534,-955.98,0.00019178,2]
[330289013,1719234644544,-500.0,0.00019178,2]
[330289014,1719234644553,-500.0,0.00019178,2]
[330289015,1719234644562,-500.0,0.00019178,2]
[330289016,1719234644571,-500.0,0.00019178,2]
[330289017,1719234644581,-500.0,0.00019178,2]
[330289018,1719234644591,-500.0,0.00019178,2]
[330289019,1719234644601,-500.0,0.00019178,2]
[330289020,1719234644612,-500.0,0.00019178,2]